{"text_format":"1","workbook":"xlsx","n_sheets":9,"sheets":["Региональные программы","Список субъектов РФ","Подписанты","Список РП","Подписанты2","за 9 месяцев 2015 года","Отчет_последний","Мер_форма","Замена"],"not_rendered":{"charts":0,"images":0,"macros":1,"external_links":0,"defined_names":11,"comments":0,"pivot_tables":0},"unopened":[],"bounds":{"document_bytes":16777216,"sheet_cells":100000,"rows_first":2000,"rows_last":500,"rows_between":2000,"halvings":0,"cell_chars":16384,"cell_head_chars":4096},"cells_cut":0,"cells_raw":0,"read":"whole","date_system":"1900"}

{"sheet":"Региональные программы","index":0,"n_rows":6,"n_cols":3,"rows_kept":6,"cut":false,"hidden":false,"merged":[[0,0,0,1]]}
["Список региональных программ",null,"Приложение к отчету"]
["Код пр.","Наименование региональной программы (подпрограммы), муниципальной программы (подпрограммы), направленной на повышение уровня безопасности дорожного движения","Наименование нормативно-правового акта, утвердившего программу, с учетом последней редакции"]
["вп","внепрограммные мероприятия"," - "]
[1,"государственная программа «Развитие транспортной системы Ивановской области»","Постановление Правительства Ивановской области от 18.03.2014 N 85-п \"О внесении изменений в постановление Правительства Ивановской области от 13.11.2013 N 447-п \"Об утверждении государственной программы Ивановской области \"Развитие транспортной системы Ивановской области\""]
["2","Государственная программа \"Информационное общество Ивановской области\"","Постановление Правительства Ивановской области от 13.11.2013 N 456-п \"Об утверждении государственной программы Ивановской области Информационное общество Ивановской области\""]
[3,"Госсударственная программа \"Развитие образования Ивановской области\"","Постановление Правительства Ивановской области от 13.11.2013 № 450-п \"Об утверждении Госсударственной программы \"Развитие образования Ивановской области\""]

{"sheet":"Список субъектов РФ","index":1,"n_rows":119,"n_cols":2,"rows_kept":119,"cut":false,"hidden":true,"merged":[]}
["Пор. №","Полное наименование субъекта РФ"]
["01","Республика Адыгея (Адыгея)"]
["02","Республика Алтай"]
["03","Республика Башкортостан"]
["04","Республика Бурятия"]
["05","Республика Дагестан"]
["06","Республика Ингушетия"]
["07","Кабардино-Балкарская Республика"]
["08","Республика Калмыкия"]
["09","Карачаево-Черкесская Республика"]
["10","Республика Карелия"]
["11","Республика Коми"]
["12","Республика Крым"]
["13","Республика Марий Эл"]
["14","Республика Мордовия"]
["15","Республика Саха (Якутия)"]
["16","Республика Северная Осетия - Алания"]
["17","Республика Татарстан (Татарстан)"]
["18","Республика Тыва"]
["19","Удмуртская Республика"]
["20","Республика Хакасия"]
["21","Чеченская Республика"]
["22","Чувашская Республика - Чувашия"]
["23","Алтайский край"]
["24","Забайкальский край"]
["25","Камчатский край"]
["26","Краснодарский край"]
["27","Красноярский край"]
["28","Пермский край"]
["29","Приморский край"]
["30","Ставропольский край"]
["31","Хабаровский край"]
["32","Амурская область"]
["33","Архангельская  область"]
["34","Астраханская область"]
["35","Белгородская область"]
["36","Брянская область"]
["37","Владимирская область"]
["38","Волгоградская область"]
["39","Вологодская область"]
["40","Воронежская область"]
["41","Ивановская область"]
["42","Иркутская область"]
["43","Калининградская область"]
["44","Калужская область"]
["45","Кемеровская область"]
["46","Кировская область"]
["47","Костромская область"]
["48","Курганская область"]
["49","Курская область"]
["50","Ленинградская область"]
["51","Липецкая область"]
["52","Магаданская область"]
["53","Московская область"]
["54","Мурманская область"]
["55","Нижегородская область"]
["56","Новгородская область"]
["57","Новосибирская область"]
["58","Омская область"]
["59","Оренбургская область"]
["60","Орловская область"]
["61","Пензенская область"]
["62","Псковская область"]
["63","Ростовская область"]
["64","Рязанская область"]
["65","Самарская область"]
["66","Саратовская область"]
["67","Сахалинская область"]
["68","Свердловская область"]
["69","Смоленская область"]
["70","Тамбовская область"]
["71","Тверская область"]
["72","Томская область"]
["73","Тульская область"]
["74","Тюменская область"]
["75","Ульяновская область"]
["76","Челябинская область"]
["77","Ярославская область"]
["78","город Москва"]
["79","город Санкт-Петербург"]
["80","город Севастополь"]
["81","Еврейская автономная область"]
["82","Ненецкий автономный округ"]
["83","Ханты-Мансийский автономный округ - Югра"]
["84","Чукотский автономный округ"]
["85","Ямало-Ненецкий автономный округ"]
[]
[]
[1,"Региональный бюджет"]
[2,"Муниципальный бюджет"]
[3,"Внебюджетные источники финансирования"]
[]
[]
[1,"1 квартал"]
[2,"2 квартал"]
[3,"3 квартал"]
[4,"4 квартал"]
[]
[2014]
[2015]
[2016]
[2017]
[2018]
[2019]
[2020]
[]
[]
[null,"РБ"]
[null,"МБ"]
[null,"ВБИ"]
[]
[]
[2]
[3]
[4]
[5]
[6]
[7]
[0]

{"sheet":"Подписанты","index":2,"n_rows":22,"n_cols":18,"rows_kept":22,"cut":false,"hidden":true,"merged":[[19,15,19,18],[21,15,21,18],[15,0,15,9],[16,0,16,9],[17,0,17,9],[15,11,15,13],[17,11,17,13],[0,0,0,14],[2,0,2,14],[14,0,14,9],[15,15,15,18],[17,15,17,18]]}
["Должностное лицо администрации субъекта РФ, ответственное за реализацию федеральной целевой программы"]
[null,null,null,null,null,null,null,null,null,null,null,null,null,null,null,null,null,"(Ф.И.О., должность)"]
["Должностное лицо, ответственное за составление формы"]
[null,null,null,null,null,null,null,null,null,null,null,null,null,null,null,null,null,"(Ф.И.О., должность)"]
[]
[null,null,null,null,null,null,null,null,null,null,null,null,null,null,null,null,null,"(адрес электронной почты)"]
[]
[null,null,null,null,null,null,null,null,null,null,null,null,null,null,null,null,null,"(номер контактного телефона)"]
[]
[]
[]
[]
[]
[]
["Вице-Губернатор Ивановской области",null,null,null,null,null,null,null,null,null,null,null,null,null,null,"А.Г. Фомин"]
["(Должность лица администрации субъекта РФ, ответственного за реализацию федеральной целевой программы)",null,null,null,null,null,null,null,null,null,null,"Подпись",null,null,null,"(Ф.И.О.)"]
["Советник отдела содержания и сохранности автомобильных дорог Департамента дорожного хозяйства Ивановской области",null,null,null,null,null,null,null,null,null,null,null,null,null,null,"А.Н. Жуков"]
["(Должность лица, ответственного за составление формы)",null,null,null,null,null,null,null,null,null,null,"Подпись",null,null,null,"(Ф.И.О.)"]
[null,null,null,null,null,null,null,null,null,null,null,null,null,null,null,"an@ivavtodor.ru"]
[null,null,null,null,null,null,null,null,null,null,null,null,null,null,null,"(адрес электронной почты)"]
[null,null,null,null,null,null,null,null,null,null,null,null,null,null,null,"(4932) 56-17-08"]
[null,null,null,null,null,null,null,null,null,null,null,null,null,null,null,"(контактный телефон)"]

{"sheet":"Список РП","index":3,"n_rows":3,"n_cols":3,"rows_kept":3,"cut":false,"hidden":true,"merged":[]}
["вп","внепрограммные мероприятия"," - "]
[1,"государственная программа «Развитие транспортной системы Ивановской области»","Постановление Правительства Ивановской области от 18.03.2014 N 85-п \"О внесении изменений в постановление Правительства Ивановской области от 13.11.2013 N 447-п \"Об утверждении государственной программы Ивановской области \"Развитие транспортной системы Ивановской области\""]
["2","Государственная программа \"Информационное общество Ивановской области\"","Постановление Правительства Ивановской области от 13.11.2013 N 456-п \"Об утверждении государственной программы Ивановской области Информационное общество Ивановской области\""]

{"sheet":"Подписанты2","index":4,"n_rows":2,"n_cols":6,"rows_kept":2,"cut":false,"hidden":true,"merged":[]}
["ФИО 1","Должность 1","ФИО 2","Должность 2","E-mail","Телефон"]
["А.Г. Фомин","Вице-Губернатор Ивановской области","А.Н. Жуков","Советник отдела содержания и сохранности автомобильных дорог Департамента дорожного хозяйства Ивановской области","an@ivavtodor.ru","(4932) 56-17-08"]

{"sheet":"за 9 месяцев 2015 года","index":5,"n_rows":27,"n_cols":21,"rows_kept":27,"cut":false,"hidden":false,"merged":[[5,5,8,5],[0,0,0,20],[1,0,1,20],[2,6,2,17],[3,0,3,20],[4,13,4,14],[4,15,4,17],[5,0,8,0],[5,1,8,1],[5,2,8,2],[5,3,8,3],[5,4,8,4],[5,16,7,17],[5,18,7,20],[10,0,14,0],[10,1,14,1],[10,3,14,3],[10,4,14,4],[10,5,14,5],[10,18,14,18],[10,19,14,19],[10,20,14,20],[5,6,8,6],[5,7,8,7],[5,8,8,8],[5,9,7,10],[5,11,7,12],[5,13,7,15],[24,15,24,18],[26,15,26,18],[19,0,19,9],[20,0,20,9],[20,11,20,13],[20,15,20,18],[21,0,21,9],[22,0,22,9],[22,11,22,13],[22,15,22,18]]}
["Отчет субъекта РФ"]
["о ходе выполнения региональных программ (подпрограмм) и внепрограммных мероприятий по повышению безопасности дорожного движения"]
[null,null,null,null,null,null,"Ивановская область"]
["(наименование субъекта РФ)"]
[null,null,null,"MS Excel 2010",null,null,null,null,null,null,null,null,null,"Период отчета: ",null,"За 9 месяцев 2015 года ",null,null,null,null,"Тыс. рублей"]
["№ п.п.","Код пр.","Наименование мероприятия","Направление ФЦП","№ мероприятия по ФЦП","Источник финансирования (РБ, МБ, ВБИ)","Запланировано в программе/подпрограмме на реализацию мероприятия на отчетный год","Бюджетные назначения на отчетный год","Лимиты бюджетных обязательств на отчетный год","Стоимость работ по контрактам на отчетный год",null,"Количество контрактов,  на отчетный год",null,"Фактически профинансировано (кассовые расходы) на реализацию мероприятия ",null,null,"Фактически освоено средств (по актам сдачи-приемки) на реализацию мероприятия",null,"Фактическое выполнение мероприятия программы (подпрограммы)\n"]
[]
[]
[null,null,null,null,null,null,null,null,null,"Всего, включая контракты прошлых лет","Всего, по контрактам, заключенным за отчетный год","Всего, включая контракты прошлых лет","Количество контрактов, заключенных в отчетном году","Всего с начала года","Всего за квартал","По кредиторской задолженности","Всего с начала года","Всего за квартал","Количественный показатель","Ед. измере-ния","Краткое описание результатов выполнения (или причин не выполнения) мероприятия программы (подпрограммы)"]
["1","2","3","4","5","6","7","8","9","10","11","12","13","14","15","16","17","18","19","20","21"]
[null,null,"Итого по всем мероприятиям",null,null,null,{"$f":"G13+G14+G15","v":84650.823999999993},{"$f":"H13+H14+H15","v":84650.823999999993},78650.823999999993,17390,54905.600000000006,2,15,40923.72,57191.100000000006,0,57191.100000000006,57191.100000000006,null,null," - "]
[null,null,"в том числе:"]
[null,null,"за счет средств регионального бюджета",null,null,null,{"$f":"G16+G17","v":84650.823999999993},{"$f":"H16+H17","v":84650.823999999993},78650.823999999993,17390,54905.600000000006,2,15,40923.72,57191.100000000006,0,57191.100000000006,57191.100000000006]
[null,null,"за счет средств местных бюджетов",null,null,null,null,null,null,null,null,null,null,null,null,0]
[null,null,"за счет внебюджетных источников"]
[1,"ВП","Нанесение горизонтальной разметки на автомобильных дорогах общего пользования регионального и межмуниципального значения Ивановской области","0","","РБ",49650.824000000001,49650.824000000001,49650.824000000001,0,49650.8,0,13,33383.42,49650.8,null,49650.8,49650.8,2077.5880000000002,"км","Нанесение горизонтальной разметки на автомобильных дорогах общего пользования регионального и межмуниципального значения Ивановской области с применением краски, термопластика и холодного пластика"]
[2,"ВП","Обеспечение функционарования региональной системы видеофиксации нарушений правил дорожного движения","2","5","РБ",35000,35000,29000,17390,5254.8,2,2,7540.3,7540.3,0,7540.3,7540.3,0,"шт","Управлением по информатизацииИвановской области планируется приобретение передвижных комплексов видеофиксации нарушений Правил дорожного движения"]
[]
[]
["Заместитель Председателя Правительства Ивановской области",null,null,null,null,null,null,null,null,null,null,null,null,null,null,"С.Ю. Тальянов"]
["(Должность лица администрации субъекта РФ, ответственного за реализацию федеральной целевой программы)",null,null,null,null,null,null,null,null,null,null,"Подпись",null,null,null,"(Ф.И.О.)"]
["Советник отдела содержания и сохранности автомобильных дорог Департамента дорожного хозяйства Ивановской области",null,null,null,null,null,null,null,null,null,null,null,null,null,null,"А.П. Осинкин"]
["(Должность лица, ответственного за составление формы)",null,null,null,null,null,null,null,null,null,null,"Подпись",null,null,null,"(Ф.И.О.)"]
[null,null,null,null,null,null,null,null,null,null,null,null,null,null,null,"оар@ivavtodor.ru"]
[null,null,null,null,null,null,null,null,null,null,null,null,null,null,null,"(адрес электронной почты)"]
[null,null,null,null,null,null,null,null,null,null,null,null,null,null,null,"(4932) 56-17-08"]
[null,null,null,null,null,null,null,null,null,null,null,null,null,null,null,"(контактный телефон)"]

{"sheet":"Отчет_последний","index":6,"n_rows":2,"n_cols":21,"rows_kept":2,"cut":false,"hidden":true,"merged":[]}
[1,1,"Нанесение горизонтальной разметки на автомобильных дорогах общего пользования регионального и межмуниципального значения Ивановской области","0","","РБ",47837,47837,47837,26318,26318,14,14,26318,19714,null,19714,19714,1231.5,"км","Департаментом дорожного хозяйства Ивановской области заключены 14 государственных контрактов на выполнение работ по нанесению горизонтальной разметки общей протяженностью 2573 км на автомобильных дорогах общего пользования регионального и межмуниципального значения Ивановской области. Во 2 квартале 2014 года нанесено 1231,5 км линий горизонтальной разметки, в том числе пластичными материалами 112,7км"]
[2,1,"Обеспечение функционарования региональной системы видеофиксации нарушений правил дорожного движения","2","5","РБ",45000,45000,45000,0,0,0,0,0,0,null,0,0,0,"шт","Управлением по информатизацииИвановской области планируется приобретение передвижных комплексов видеофиксации нарушений Правил дорожного движения"]

{"sheet":"Мер_форма","index":7,"n_rows":11,"n_cols":260,"rows_kept":11,"cut":false,"hidden":true,"merged":[]}
["№ пп.","","Мероприятие","Направление","Номер","ИстФин","План","БН","ЛБО","СКвсего","СКгод","ККвсего","ККгод","КРвсего","КРквартал","КРкредит","ОсвоеноВсего","ОсвоеноКвартал","Количество","ЕдИзм","Описание",null,null,null,null,null,null,null,null,null,null,null,null,null,null,null,null,null,null,null,null,null,null,null,null,null,null,null,null,null,null,null,null,null,null,null,null,null,null,null,null,null,null,null,null,null,null,null,null,null,null,null,null,null,null,null,null,null,null,null,null,null,null,null,null,null,null,null,null,null,null,null,null,null,null,null,null,null,null,null,null,null,null,null,null,null,null,null,null,null,null,null,null,null,null,null,null,null,null,null,null,null,null,null,null,null,null,null,null,null,null,null,null,null,null,null,null,null,null,null,null,null,null,null,null,null,null,null,null,null,null,null,null,null,null,null,null,null,null,null,null,null,null,null,null,null,null,null,null,null,null,null,null,null,null,null,null,null,null,null,null,null,null,null,null,null,null,null,null,null,null,null,null,null,null,null,null,null,null,null,null,null,null,null,null,null,null,null,null,null,null,null,null,null,null,null,null,null,null,null,null,null,null,null,null,null,null,null,null,null,null,null,null,null,null,null,null,null,null,null,null,null,null,null,null,null,null,null,null,null,null,null,null,null,null,null,null,null,"ЕдИзм","Описание"]
[1,1,"Нанесение горизонтальной разметки на автомобильных дорогах общего пользования регионального и межмуниципального значения Ивановской области","0","","РБ",47837,47837,47837,26318,26318,14,14,26318,19714,null,19714,19714,1231.5,"км","Департаментом дорожного хозяйства Ивановской области заключены 14 государственных контрактов на выполнение работ по нанесению горизонтальной разметки общей протяженностью 2573 км на автомобильных дорогах общего пользования регионального и межмуниципального значения Ивановской области. Во 2 квартале 2014 года нанесено 1231,5 км линий горизонтальной разметки, в том числе пластичными материалами 112,7км"]
[2,2,"Обеспечение функционарования региональной системы видеофиксации нарушений правил дорожного движения","2","5","РБ",45000,45000,45000,0,0,0,0,0,0,null,0,0,0,"шт","Управлением по информатизацииИвановской области планируется приобретение передвижных комплексов видеофиксации нарушений Правил дорожного движения"]
[3,null,"Нанесение горизонтальной дорожной разметки на улично-дорожной сети города Иванова ","0",null,"МБ",20865.2,20865.2,20865.2,20865.2,20865.2,40,40,17372.2,10412.700000000001,null,17372.2,10412.700000000001,269.35599999999999,"км","Администрацией города Иваново заключены 40 муниципальных контрактов на выполнение работ по нанесению линий горизонтальной разметки общей протяженностью 269,356 км"]
[4,3,"Проведение массовых мероприятий с детьми (конкурсы: \"Светофор\", \"Безопасное колесо\", \"Добрая дорога детства\", \"Светофорчик\", \"Школьник, автомобиль, дорога\", профильные смены активистов отрядов юных инспекторов движения, чемпионаты юношеских автошкол по автомногоборью) по профилактике детского дорожно-транспортного травматизма и обучению безопасному участию в дорожном движении\n",null,null,"РБ",420,420,420,420,420,2,2,420,340,0,420,340,37024,"чел.","Проведен областной смотр-конкурс «Светофорчик» среди детских дошкольных учреждений (далее – ДОУ). В период проведения смотра на регулярной основе в дошкольных образовательных учреждениях проводились беседы по безопасности дорожного движения. Всего организовано 962 беседы. Сотрудники Госавтоинспекции приняли участие в проведении 230 родительских собраний в ДОУ. В финале конкурса приняло участие 28 дошкольных образовательных учреждений области.\nСостоялся областной слёт агитбригад юных инспекторов движения «Светофор» с участием команд всех муниципальных образований области.\nПроведен творческий конкурса рисунков и фотографий «Добрая дорога детства». В конкурсе приняло участие более 500 школьников.\nОбластные соревнования по безопасности дорожного движения «Безопасное колесо». В конкурсе приняли участие свыше 100 юных инспекторов движения со всей Ивановской области. \nДепартаментом образования Ивановской области совместно с Управлением ГИБДД УМВД России по Ивановской области проведена акция «Внимание – дети!». \nАктивным участникам отрядов юных инспекторов движения Департаментом образования Ивановской области выделены путевки на участие в профильной смене «Школа безопасности»"]
[5,null,"Реконструкция улицы Куконковых и Кохомского шоссе с устройством искусственных сооружений, входящих в состав транспортной развязки Тейково-Шуя-Кинешма","0",null,"МБ",3473.82,3473.82,3473.82,6.27,3467.55,1,2,3473.82,2.11,null,3473.82,2.11,2.2999999999999998,"км","По состоянию на отчетную дату управлением выполнены мероприятия по вводу объекта в эксплуатацию (Разрешение на ввод объекта в эксплуатацию от 03.07.2014 № RU37302000-0069-2014)."]
[6,null,"Строительство дорожной сети по ул. Генерала Хлебникова на участке от ул. Кудряшова до ул. Шубиных с устройством искусственных сооружений","0",null,"МБ",8519.8700000000008,8519.8700000000008,8519.8700000000008,7225.71,111,3,2,7336.11,1422.33,null,7336.11,1422.33,0.5,"км","По состоянию на отчетную дату управлением получено разрешение на ввод объекта в эксплуатацию от 11.09.2014 № RU37302000-0102-2014."]
[7,null,"Разработка проектно-сметной документации на «Строительство окружной дороги по ул. Станкостроителей в г. Иваново (I этап)»","0",null,"МБ",447.37,447.37,447.37,447.37,0,0,2,3.17,1.07,null,3.2,1.1000000000000001,0,"шт","Проектно-сметная документация разработана в полном объеме. По состоянию на отчетную дату документация находится в АГУ \"Ивгосэкспертиза\" для проведения государственной экспертизы проектной документации, результатов инженерных изысканий, достоверности определения сметной стоимости объекта капитального строительства."]
[8,null,"Разработка проектно-сметной документации «Строительство автодороги от д. Беркино до полигона твердых бытовых отходов»","0",null,"МБ",1000,1000,1000,0,785,0,1,0,0,null,0,0,0,"шт","26.05.2014 заключен муниципальный контракт №1-ПС на выполнение проектных работ и получению положительных заключений госудсртвенной экспертизы проектной документации и результатов инженерных изысканий, а также достоверности определения сметной стоимости. По состоянию на отчетную дату муниципальный контракт на выполнение проектных работ приостановлен в связи с отсутствием выполненных МУП САЖХ работ по межеванию участка автодороги от д. Беркино до Мало-Ступкинского полигона ТБО и соответствующих внесенных изменений в сведения кадастрового учета по ранее установленному участку от полигона ТБО до границ Ивановского муниципального района."]
[9,null,"Разработка проектно-сметной документации “Строительство автодороги Авдотьино-Минеево, соединяющей ул. Минскую и ул. Революционную г. Иваново\"","0",null,"МБ",4300,4300,4300,0,0,0,0,0,0,null,0,0,0,"шт","По состоянию на отчетную дату управлением выполняются мероприятия по заключению муниципального контракта на выполнение полного комплекса проектных работ с победителем открытого конкурса в рамках требований Федерального закона от 05.04.2013 № 44-ФЗ «О контрактной системе в сфере закупок товаров, работ, услуг для обеспечения государственных и муниципальных нужд»"]
[10,null,"Разработка проектно-сметной документации “Строительство автодороги м. Минеево – пос. Дальний, соединяющей ул. Минскую и ул. Фрунзе г. Иваново\"","0",null,"МБ",5370,5370,5370,0,0,0,0,0,0,null,0,0,0,"шт","По состоянию на отчетную дату управлением выполнены мероприятия по подготовке конкурсной документации для проведения процедуры размещения муниципального заказа на право заключения муниципального контракта на выполнение подрядных работ. Соответствующий муниципальный контракт планируется заключить по итогам торгов в 4 кв. 2014 года."]

{"sheet":"Замена","index":8,"n_rows":0,"n_cols":0,"rows_kept":0,"cut":false,"hidden":true,"merged":[]}